fUST/lending_fUST_20260101
["ID","MTS","AMOUNT","RATE_DAILY","PERIOD"]
[400244802,1767215445131,-299.0,0.00027397,2]
[400244803,1767215445140,-299.0,0.00027397,2]
[400244804,1767215445149,-299.0,0.00027397,2]
[400244805,1767215445159,-299.0,0.00027397,2]
[400244806,1767215445169,-299.0,0.00027397,2]
[400244807,1767215445178,-299.0,0.00027397,2]
[400244808,1767215445187,-299.0,0.00027397,2]
[400244809,1767215445196,-299.0,0.00027397,2]
[400244810,1767215445206,-299.0,0.00027397,2]
[400244811,1767215445215,-299.0,0.00027397,2]
[400244812,1767215445226,-299.0,0.00027397,2]
[400244813,1767215445235,-299.0,0.00027397,2]
[400244814,1767215445244,-299.0,0.00027397,2]
[400244815,1767215445254,-299.0,0.00027397,2]
[400244816,1767215445263,-299.0,0.00027397,2]
[400244817,1767215445272,-151.0,0.00027397,7]
[400244818,1767215445281,-151.0,0.00027397,7]
[400244819,1767215445291,-151.0,0.00027397,7]
[400244820,1767215445301,-151.0,0.00027397,7]
[400244821,1767215445311,-151.0,0.00027397,7]
[400244822,1767215445320,-163.988889,0.00027397,7]
[400244823,1767215445329,-163.988889,0.00027397,7]
[400244824,1767215445339,-163.988889,0.00027397,7]
[400244825,1767215445348,-163.988889,0.00027397,7]
[400244826,1767215445359,-158.892051,0.00027397,7]
[400244827,1767215445368,-158.892051,0.00027397,7]
[400244828,1767215445378,-158.892051,0.00027397,7]
[400244829,1767215445387,-158.892051,0.00027397,7]
[400244830,1767215445396,-151.0,0.00027397,7]
[400244831,1767215445406,-151.0,0.00027397,7]
[400244832,1767215445415,-151.0,0.00027397,7]
[400244833,1767215445425,-151.0,0.00027397,7]
[400244834,1767215445435,-151.0,0.00027397,7]
[400244835,1767215445444,-221.765393,0.00027397,7]
[400244836,1767215445454,-160.429789,0.00027397,7]
[400244837,1767215445463,-151.0,0.00027397,7]
[400244838,1767215445472,-151.0,0.00027397,7]
[400244839,1767215445482,-152.548448,0.00027397,7]
[400244840,1767215445491,-152.548448,0.00027397,7]
[400244841,1767215445501,-152.548448,0.00027397,7]
[400244842,1767215445511,-152.548448,0.00027397,7]
[400244843,1767215445520,-195.765928,0.00027397,7]
[400244844,1767215445530,-151.0,0.00027397,7]
[400244845,1767215445540,-151.0,0.00027397,7]
[400244846,1767215445550,-151.0,0.00027397,7]
[400244847,1767215445560,-151.0,0.00027397,7]
[400244848,1767215445569,-151.0,0.00027397,7]
[400244849,1767215445578,-151.0,0.00027397,7]
[400244850,1767215445587,-151.0,0.00027397,7]
[400244851,1767215445597,-151.0,0.00027397,7]
[400244852,1767215445606,-151.0,0.00027397,7]
[400244853,1767215445616,-151.0,0.00027397,7]
[400244854,1767215445625,-151.0,0.00027397,7]
[400244855,1767215445634,-151.0,0.00027397,7]
[400244856,1767215445644,-151.0,0.00027397,7]
[400244857,1767215445653,-185.00562,0.00027397,7]
[400244858,1767215445663,-152.611704,0.00027397,7]
[400244859,1767215445672,-1888.298719,0.00027397,7]
[400244860,1767215445682,-1888.298719,0.00027397,7]
[400244861,1767215445691,-1888.298719,0.00027397,7]
[400244862,1767215445701,-1888.298719,0.00027397,7]
[400244863,1767215445710,-151.0,0.00027397,7]
[400244865,1767215445719,-151.0,0.00027397,7]
[400244866,1767215445729,-151.0,0.00027397,7]
[400244868,1767215445738,-237.965495,0.00027397,7]
[400244869,1767215445747,-237.965495,0.00027397,7]
[400244870,1767215445756,-237.965495,0.00027397,7]
[400244872,1767215445765,-242.224845,0.00027397,7]
[400244874,1767215445775,-237.965495,0.00027397,7]
[400244875,1767215445784,-234.643774,0.00027397,7]
[400244877,1767215445793,-242.224845,0.00027397,7]
[400244878,1767215445803,-242.224845,0.00027397,7]
[400244879,1767215445812,-242.224845,0.00027397,7]
[400244880,1767215445821,-1062.636171,0.00027397,7]
[400244881,1767215445830,-1062.636171,0.00027397,7]
[400244882,1767215445839,-1062.636171,0.00027397,7]
[400244883,1767215445848,-1062.636171,0.00027397,7]
[400244884,1767215445857,-151.0,0.00027397,7]
[400244885,1767215445867,-151.0,0.00027397,7]
[400244886,1767215445876,-151.0,0.00027397,7]
[400244887,1767215445886,-151.0,0.00027397,7]
[400244888,1767215445895,-151.0,0.00027397,7]
[400244889,1767215445906,-151.0,0.00027397,7]
[400244890,1767215445917,-151.0,0.00027397,7]
[400244891,1767215445926,-151.0,0.00027397,7]
[400244892,1767215445935,-151.0,0.00027397,7]
[400244893,1767215445944,-151.0,0.00027397,7]
[400244894,1767215445954,-151.0,0.00027397,7]
[400244895,1767215445963,-323.507289,0.00027397,7]
[400244896,1767215445972,-323.507289,0.00027397,7]
[400244897,1767215445981,-323.507289,0.00027397,7]
[400244898,1767215445991,-323.507289,0.00027397,7]
[400244899,1767215446000,-323.507289,0.00027397,7]
[400244900,1767215446009,-323.507289,0.00027397,7]
[400244901,1767215446019,-173.074121,0.00027397,7]
[400244902,1767215446028,-389.397028,0.00027397,7]
[400244903,1767215446038,-323.507289,0.00027397,7]
[400244904,1767215446047,-389.397028,0.00027397,7]
[400244905,1767215446057,-323.507289,0.00027397,7]
[400244906,1767215446067,-151.0,0.00027397,7]
[400244907,1767215446076,-279.119257,0.00027397,7]
[400244908,1767215446085,-389.397028,0.00027397,7]
[400244909,1767215446094,-151.0,0.00027397,7]
[400244910,1767215446104,-389.397028,0.00027397,7]
[400244911,1767215446113,-151.0,0.00027397,7]
[400244912,1767215446122,-389.397028,0.00027397,7]
[400244913,1767215446132,-389.397028,0.00027397,7]
[400244914,1767215446141,-151.0,0.00027397,7]
[400244915,1767215446151,-151.0,0.00027397,7]
[400244916,1767215446161,-389.397028,0.00027397,7]
[400244917,1767215446170,-389.397028,0.00027397,7]
[400244918,1767215446180,-372.889096,0.00027397,7]
[400244919,1767215446189,-372.889096,0.00027397,7]
[400244920,1767215446198,-372.889096,0.00027397,7]
[400244921,1767215446208,-372.889096,0.00027397,7]
[400244922,1767215446218,-372.889096,0.00027397,7]
[400244923,1767215446227,-372.889096,0.00027397,7]
[400244924,1767215446236,-372.889096,0.00027397,7]
[400244925,1767215446245,-372.889096,0.00027397,7]
[400244926,1767215446255,-151.0,0.00027397,7]
[400244928,1767215446265,-151.0,0.00027397,7]
[400244930,1767215446275,-1264.830438,0.00027397,7]
[400244931,1767215446284,-1264.830438,0.00027397,7]
[400244932,1767215446295,-1264.830438,0.00027397,7]
[400244933,1767215446304,-1264.830438,0.00027397,7]
[400244934,1767215446314,-1264.830438,0.00027397,7]
[400244935,1767215446323,-1264.830438,0.00027397,7]
[400244936,1767215446333,-1264.830438,0.00027397,7]
[400244937,1767215446343,-1264.830438,0.00027397,7]
[400244938,1767215446353,-151.0,0.00027397,7]
[400244939,1767215446362,-151.0,0.00027397,7]
[400244940,1767215446372,-351.462962,0.00027397,7]
[400244941,1767215446381,-351.462962,0.00027397,7]
[400244942,1767215446391,-151.0,0.00027397,7]
[400244943,1767215446400,-151.0,0.00027397,7]
[400244944,1767215446410,-351.462962,0.00027397,7]
[400244945,1767215446420,-351.462962,0.00027397,7]
[400244946,1767215446429,-351.462962,0.00027397,7]
[400244947,1767215446439,-351.462962,0.00027397,7]
[400244948,1767215446448,-351.462962,0.00027397,7]
[400244949,1767215446457,-151.0,0.00027397,7]
[400244950,1767215446466,-351.462962,0.00027397,7]
[400244951,1767215446476,-151.0,0.00027397,7]
[400244952,1767215446485,-151.0,0.00027397,7]
[400244953,1767215446496,-153.768566,0.00027397,7]
[400244954,1767215446505,-151.0,0.00027397,7]
[400244955,1767215446514,-151.0,0.00027397,7]
[400244956,1767215446523,-151.0,0.00027397,7]
[400244957,1767215446533,-151.0,0.00027397,7]
[400244958,1767215446542,-166.112827,0.00027397,7]
[400244959,1767215446552,-151.0,0.00027397,7]
[400244960,1767215446561,-300.34133,0.00027397,7]
[400244961,1767215446571,-440.924061,0.00027397,7]
[400244962,1767215446580,-440.924061,0.00027397,7]
[400244963,1767215446589,-440.924061,0.00027397,7]
[400244964,1767215446686,-440.924061,0.00027397,7]
[400244965,1767215446695,-440.924061,0.00027397,7]
[400244966,1767215446705,-440.924061,0.00027397,7]
[400244967,1767215446714,-440.924061,0.00027397,7]
[400244968,1767215446723,-440.924061,0.00027397,7]
[400244969,1767215446732,-151.0,0.00027397,7]
[400244970,1767215446742,-151.0,0.00027397,7]
[400244971,1767215446751,-151.0,0.00027397,7]
[400244972,1767215446761,-151.0,0.00027397,7]
[400244973,1767215446770,-151.0,0.00027397,7]
[400244974,1767215446780,-151.0,0.00027397,7]
[400244975,1767215446789,-151.0,0.00027397,7]
[400244976,1767215446798,-151.0,0.00027397,7]
[400244977,1767215446808,-151.0,0.00027397,7]
[400244978,1767215446818,-151.0,0.00027397,7]
[400244979,1767215446827,-151.0,0.00027397,7]
[400244980,1767215446836,-151.0,0.00027397,7]
[400244981,1767215446846,-151.0,0.00027397,7]
[400244982,1767215446856,-151.0,0.00027397,7]
[400244983,1767215446865,-151.0,0.00027397,7]
[400244984,1767215446875,-177.291107,0.00027397,7]
[400244985,1767215446884,-465.090216,0.00027397,7]
[400244986,1767215446894,-465.090216,0.00027397,7]
[400244987,1767215446904,-367.945551,0.00027397,7]
[400244988,1767215446916,-367.945551,0.00027397,7]
[400244989,1767215446926,-465.090216,0.00027397,7]
[400244990,1767215446935,-465.090216,0.00027397,7]
[400244991,1767215446947,-293.104127,0.00027397,7]
[400244992,1767215446956,-293.104127,0.00027397,7]
[400244993,1767215446965,-367.945551,0.00027397,7]
[400244994,1767215446974,-367.945551,0.00027397,7]
[400244995,1767215446983,-465.090216,0.00027397,7]
[400244996,1767215446992,-465.090216,0.00027397,7]
[400244997,1767215447002,-293.104127,0.00027397,7]
[400244998,1767215447011,-293.104127,0.00027397,7]
[400244999,1767215447020,-367.945551,0.00027397,7]
[400245000,1767215447029,-367.945551,0.00027397,7]
[400245001,1767215447038,-465.090216,0.00027397,7]
[400245002,1767215447047,-465.090216,0.00027397,7]
[400245003,1767215447057,-293.104127,0.00027397,7]
[400245004,1767215447066,-293.104127,0.00027397,7]
[400245005,1767215447075,-367.945551,0.00027397,7]
[400245006,1767215447084,-367.945551,0.00027397,7]
[400245007,1767215447094,-293.104127,0.00027397,7]
[400245008,1767215447104,-293.104127,0.00027397,7]
[400245009,1767215447114,-151.0,0.00027397,7]
[400245010,1767215447124,-151.0,0.00027397,7]
[400245011,1767215447134,-151.0,0.00027397,7]
[400245013,1767215447144,-151.0,0.00027397,7]
[400245014,1767215447153,-151.0,0.00027397,7]
[400245015,1767215447163,-151.0,0.00027397,7]
[400245017,1767215447173,-151.0,0.00027397,7]
[400245019,1767215447183,-151.0,0.00027397,7]
[400245021,1767215447193,-151.0,0.00027397,7]
[400245023,1767215447202,-177.644782,0.00027397,7]
[400245025,1767215447211,-151.0,0.00027397,7]
[400245026,1767215447220,-151.0,0.00027397,7]
[400245028,1767215447234,-177.488115,0.00027397,7]
[400245030,1767215447244,-178.917895,0.00027397,7]
[400245032,1767215447254,-182.784702,0.00027397,7]
[400245033,1767215447263,-805.861522,0.00027397,7]
[400245034,1767215447273,-805.861522,0.00027397,7]
[400245035,1767215447282,-805.861522,0.00027397,7]
[400245036,1767215447292,-805.861522,0.00027397,7]
[400245038,1767215447301,-187.899686,0.00027397,7]
[400245039,1767215447311,-805.861522,0.00027397,7]
[400245040,1767215447320,-805.861522,0.00027397,7]
[400245041,1767215447330,-151.0,0.00027397,7]
[400245042,1767215447339,-805.861522,0.00027397,7]
[400245044,1767215447348,-151.0,0.00027397,7]
[400245045,1767215447358,-805.861522,0.00027397,7]
[400245046,1767215447368,-151.0,0.00027397,7]
[400245047,1767215447378,-151.0,0.00027397,7]
[400245048,1767215447388,-151.0,0.00027397,7]
[400245050,1767215447397,-151.0,0.00027397,7]
[400245051,1767215447407,-209.486994,0.00027397,7]
[400245052,1767215447416,-151.0,0.00027397,7]
[400245053,1767215447427,-151.0,0.00027397,7]
[400245054,1767215447436,-151.0,0.00027397,7]
[400245056,1767215447445,-151.0,0.00027397,7]
[400245057,1767215447455,-151.0,0.00027397,7]
[400245058,1767215447464,-151.0,0.00027397,7]
[400245059,1767215447475,-151.0,0.00027397,7]
[400245060,1767215447485,-300.511634,0.00027397,7]
[400245062,1767215447495,-1559.059603,0.00027397,7]
[400245063,1767215447505,-1559.059603,0.00027397,7]
[400245064,1767215447515,-1559.059603,0.00027397,7]
[400245065,1767215447524,-1559.059603,0.00027397,7]
[400245066,1767215447534,-1559.059603,0.00027397,7]
[400245068,1767215447543,-1559.059603,0.00027397,7]
[400245069,1767215447552,-1559.059603,0.00027397,7]
[400245070,1767215447561,-1559.059603,0.00027397,7]
[400245071,1767215447571,-394.521351,0.00027397,7]
[400245072,1767215447580,-179.18193,0.00027397,7]
[400245073,1767215447590,-394.521351,0.00027397,7]
[400245075,1767215447599,-429.596572,0.00027397,7]
[400245076,1767215447608,-429.596572,0.00027397,7]
[400245077,1767215447618,-394.521351,0.00027397,7]
[400245078,1767215447628,-394.521351,0.00027397,7]
[400245079,1767215447638,-429.596572,0.00027397,7]
[400245080,1767215447647,-429.596572,0.00027397,7]
[400245081,1767215447657,-394.521351,0.00027397,7]
[400245082,1767215447666,-394.521351,0.00027397,7]
[400245083,1767215447676,-429.596572,0.00027397,7]
[400245084,1767215447686,-429.596572,0.00027397,7]
[400245085,1767215447695,-394.521351,0.00027397,7]
[400245086,1767215447704,-429.596572,0.00027397,7]
[400245087,1767215447714,-394.521351,0.00027397,7]
[400245088,1767215447723,-429.596572,0.00027397,7]
[400245089,1767215447732,-151.0,0.00027397,7]
[400245090,1767215447743,-151.0,0.00027397,7]
[400245091,1767215447752,-151.0,0.00027397,7]
[400245092,1767215447762,-151.0,0.00027397,7]
[400245093,1767215447773,-151.0,0.00027397,7]
[400245094,1767215447783,-151.0,0.00027397,7]
[400245095,1767215447792,-151.0,0.00027397,7]
[400245096,1767215447802,-166.656279,0.00027397,7]
[400245097,1767215447811,-151.0,0.00027397,7]
[400245098,1767215447820,-151.0,0.00027397,7]
[400245099,1767215447830,-1719.972035,0.00027397,7]
[400245100,1767215447839,-1719.972035,0.00027397,7]
[400245101,1767215447849,-151.0,0.00027397,7]
[400245102,1767215447858,-151.0,0.00027397,7]
[400245103,1767215447867,-1719.972035,0.00027397,7]
[400245104,1767215447876,-1719.972035,0.00027397,7]
[400245105,1767215447886,-151.0,0.00027397,7]
[400245106,1767215447895,-159.852465,0.00027397,7]
[400245107,1767215447906,-1719.972035,0.00027397,7]
[400245108,1767215447918,-1719.972035,0.00027397,7]
[400245109,1767215447927,-1719.972035,0.00027397,7]
[400245110,1767215447937,-151.0,0.00027397,7]
[400245111,1767215447947,-1719.972035,0.00027397,7]
[400245112,1767215447957,-151.0,0.00027397,7]
[400245113,1767215447966,-151.0,0.00027397,7]
[400245114,1767215447975,-151.0,0.00027397,7]
[400245115,1767215447986,-151.0,0.00027397,7]
[400245116,1767215447999,-151.0,0.00027397,7]
[400245117,1767215448016,-151.0,0.00027397,7]
[400245118,1767215448032,-207.414308,0.00027397,7]
[400245119,1767215448042,-151.0,0.00027397,7]
[400245120,1767215448051,-151.0,0.00027397,7]
[400245121,1767215448061,-151.0,0.00027397,7]
[400245122,1767215448070,-197.835449,0.00027397,7]
[400245123,1767215448081,-197.835449,0.00027397,7]
[400245124,1767215448090,-197.835449,0.00027397,7]
[400245125,1767215448100,-197.835449,0.00027397,7]
[400245126,1767215448110,-197.835449,0.00027397,7]
[400245127,1767215448120,-151.0,0.00027397,7]
[400245128,1767215448129,-197.835449,0.00027397,7]
[400245129,1767215448138,-151.0,0.00027397,7]
[400245130,1767215448147,-151.0,0.00027397,7]
[400245131,1767215448156,-197.835449,0.00027397,7]
[400245132,1767215448166,-197.835449,0.00027397,7]
[400245133,1767215448175,-754.40778,0.00027397,7]
[400245134,1767215448184,-754.40778,0.00027397,7]
[400245135,1767215448194,-754.40778,0.00027397,7]
[400245136,1767215448203,-754.40778,0.00027397,7]
[400245137,1767215448212,-754.40778,0.00027397,7]
[400245138,1767215448222,-754.40778,0.00027397,7]
[400245139,1767215448231,-754.40778,0.00027397,7]
[400245140,1767215448241,-754.40778,0.00027397,7]
[400245141,1767215448250,-151.0,0.00027397,7]
[400245142,1767215448260,-500.65812564,0.00027397,5]
[400245143,1767215448270,-150.0,0.00027397,5]
[400245144,1767215448280,-150.58382148,0.00027397,5]
[400245145,1767215448289,-172.49,0.00027397,8]
[400245146,1767215448298,-699.612284,0.00027433,2]
[400245147,1767215448308,-2000.0,0.0002748,7]
[400245148,1767215448318,-2000.0,0.00027489,7]
[400245149,1767215448327,-2000.0,0.00027497,7]
[400245150,1767215448337,-177.35,0.000275,2]
[400245151,1767215448347,-176.02,0.000275,7]
[400245152,1767215448356,-2000.0,0.00027506,7]
[400245153,1767215448366,-2000.0,0.00027515,7]
[400245154,1767215448376,-2000.0,0.00027524,7]
[400245155,1767215448385,-2000.0,0.00027533,7]
[400245156,1767215448395,-2000.0,0.00027541,7]
[400245157,1767215448404,-2000.0,0.0002755,7]
[400245158,1767215448414,-2000.0,0.00027559,7]
[400245159,1767215448424,-2000.0,0.00027568,7]
[400245160,1767215448434,-2000.0,0.00027577,7]
[400245161,1767215448444,-2000.0,0.00027585,7]
[400245162,1767215448454,-2000.0,0.00027594,7]
[400245163,1767215448463,-1149.95,0.000276,14]
[400245164,1767215448473,-2000.0,0.00027603,7]
[400245165,1767215448483,-2000.0,0.00027612,7]
[400245166,1767215448492,-2000.0,0.00027621,7]
[400245167,1767215448502,-151.0,0.00027621,7]
[400245168,1767215448512,-151.0,0.00027621,7]
[400245169,1767215448522,-151.0,0.00027621,7]
[400245170,1767215448531,-151.0,0.00027621,7]
[400245171,1767215448541,-151.0,0.00027621,7]
[400245172,1767215448551,-151.0,0.00027621,7]
[400245173,1767215448560,-2000.0,0.00027629,7]
[400245174,1767215448569,-2000.0,0.00027638,7]
[400245175,1767215448579,-2000.0,0.00027647,7]
[400245176,1767215448590,-2000.0,0.00027656,7]
[400245177,1767215448599,-2000.0,0.00027665,7]
[400245178,1767215448609,-822.87,0.00027671,2]
[400245179,1767215448619,-1077.49,0.00027671,2]
[400245180,1767215448629,-560.02,0.00027671,2]
[400245181,1767215448638,-1304.54,0.00027671,2]
[400245182,1767215448739,-5028.39,0.00027671,2]
[400245183,1767215448749,-285.08395132,0.00027671,2]
[400245184,1767215448759,-6345.99,0.00027671,2]
[400245185,1767215448769,-541.38,0.00027671,2]
[400245186,1767215448778,-1390.89,0.00027671,2]
[400245187,1767215448788,-684.8,0.00027671,2]
[400245188,1767215448798,-642.07,0.00027671,2]
[400245189,1767215448808,-677.78,0.00027671,2]
[400245190,1767215448818,-2000.0,0.00027673,7]
[400245191,1767215448828,-2000.0,0.00027682,7]
[400245192,1767215448837,-2000.0,0.00027691,7]
[400245193,1767215448847,-2000.0,0.000277,7]
[400245194,1767215448856,-2000.0,0.00027709,7]
[400245195,1767215448866,-324.0,0.00027716,2]
[400245196,1767215448875,-2000.0,0.00027717,7]
[400245197,1767215448885,-163.988889,0.00027718,7]
[400245198,1767215448894,-163.988889,0.00027718,7]
[400245199,1767215448904,-163.988889,0.00027718,7]
[400245200,1767215448917,-163.988889,0.00027718,7]
[400245201,1767215448927,-151.0,0.00027718,7]
[400245202,1767215448937,-158.892051,0.00027718,7]
[400245203,1767215448947,-158.892051,0.00027718,7]
[400245204,1767215448956,-158.892051,0.00027718,7]
[400245205,1767215448965,-158.892051,0.00027718,7]
[400245206,1767215448974,-2000.0,0.00027726,7]
[400245207,1767215448985,-2000.0,0.00027735,7]
[400245208,1767215448994,-2000.0,0.00027744,7]
[400245209,1767215449004,-2000.0,0.00027753,7]
[400245210,1767215449013,-2000.0,0.00027761,7]
[400245211,1767215449024,-574.12855637,0.00027762,2]
[400245212,1767215449034,-2773.56790519,0.00027762,2]
[400245213,1767215449044,-151.0,0.0002777,7]
[400245214,1767215449053,-151.0,0.0002777,7]
[400245215,1767215449063,-151.0,0.0002777,7]
[400245216,1767215449073,-151.0,0.0002777,7]
[400245217,1767215449083,-151.0,0.0002777,7]
[400245218,1767215449093,-2000.0,0.0002777,7]
[400245219,1767215449102,-2000.0,0.00027779,7]
[400245220,1767215449111,-2000.0,0.00027788,7]
[400245221,1767215449121,-2000.0,0.00027797,7]
[400245222,1767215449131,-2000.0,0.00027805,7]
[400245223,1767215449141,-2000.0,0.00027814,7]
[400245224,1767215449150,-2000.0,0.00027823,7]
[400245225,1767215449160,-2000.0,0.00027832,7]
[400245226,1767215449170,-2000.0,0.00027841,7]
[400245227,1767215449179,-2000.0,0.00027849,7]
[400245228,1767215449189,-2000.0,0.00027857,7]
[400245229,1767215449198,-2000.0,0.00027858,7]
[400245230,1767215449208,-2000.0,0.00027866,7]
[400245231,1767215449217,-2000.0,0.00027867,7]
[400245232,1767215449227,-2000.0,0.00027875,7]
[400245233,1767215449236,-2000.0,0.00027876,7]
[400245234,1767215449247,-2000.0,0.00027883,7]
[400245235,1767215449256,-2000.0,0.00027885,7]
[400245236,1767215449266,-2000.0,0.00027892,7]
[400245237,1767215449276,-2000.0,0.00027893,7]
[400245238,1767215449285,-151.0,0.00027898,7]
[400245239,1767215449295,-198.827398,0.00027898,7]
[400245240,1767215449305,-151.0,0.00027898,7]
[400245241,1767215449314,-151.0,0.00027898,7]
[400245242,1767215449323,-151.0,0.00027898,7]
[400245243,1767215449332,-301.76576,0.00027898,7]
[400245244,1767215449342,-151.0,0.00027898,7]
[400245245,1767215449351,-151.0,0.00027898,7]
[400245246,1767215449360,-151.0,0.00027898,7]
[400245247,1767215449370,-151.0,0.00027898,7]
[400245248,1767215449379,-151.0,0.00027898,7]
[400245249,1767215449389,-9359.66,0.000279,2]
[400245250,1767215449399,-2000.0,0.00027901,7]
[400245251,1767215449409,-2000.0,0.00027902,7]
[400245252,1767215449419,-2000.0,0.0002791,7]
[400245253,1767215449428,-2000.0,0.00027911,7]
[400245254,1767215449438,-151.0,0.00027911,7]
[400245255,1767215449447,-151.0,0.00027911,7]
[400245256,1767215449456,-1888.298719,0.00027911,7]
[400245257,1767215449466,-1888.298719,0.00027911,7]
[400245258,1767215449476,-1888.298719,0.00027911,7]
[400245259,1767215449485,-1888.298719,0.00027911,7]
[400245260,1767215449495,-151.0,0.00027911,7]
[400245261,1767215449505,-151.0,0.00027911,7]
[400245262,1767215449515,-151.0,0.00027911,7]
[400245263,1767215449524,-237.965495,0.00027911,7]
[400245264,1767215449534,-237.965495,0.00027911,7]
[400245265,1767215449543,-237.965495,0.00027911,7]
[400245266,1767215449552,-242.224845,0.00027911,7]
[400245267,1767215449562,-237.965495,0.00027911,7]
[400245268,1767215449571,-242.224845,0.00027911,7]
[400245269,1767215449580,-242.224845,0.00027911,7]
[400245270,1767215449589,-242.224845,0.00027911,7]
[400245271,1767215449599,-1062.636171,0.00027911,7]
[400245272,1767215449609,-1062.636171,0.00027911,7]
[400245273,1767215449617,-1062.636171,0.00027911,7]
[400245274,1767215449626,-1062.636171,0.00027911,7]
[400245275,1767215449636,-2000.0,0.00027919,7]
[400245276,1767215449645,-2000.0,0.0002792,7]
[400245277,1767215449655,-2000.0,0.00027927,7]
[400245278,1767215449664,-2000.0,0.00027929,7]
[400245279,1767215449673,-323.0,0.00027929,2]
[400245280,1767215449683,-321.0,0.00027936,2]
[400245281,1767215449692,-2000.0,0.00027936,7]
[400245282,1767215449701,-2000.0,0.00027937,7]
[400245283,1767215449710,-192.53088115,0.00027939,7]
[400245284,1767215449720,-822.87,0.00027945,2]
[400245285,1767215449729,-1077.49,0.00027945,2]
[400245286,1767215449738,-560.02,0.00027945,2]
[400245287,1767215449748,-1304.54,0.00027945,2]
[400245288,1767215449757,-2000.0,0.00027945,7]
[400245289,1767215449766,-5028.39,0.00027945,2]
[400245290,1767215449776,-6345.99,0.00027945,2]
[400245291,1767215449785,-541.38,0.00027945,2]
[400245292,1767215449794,-1390.89,0.00027945,2]
[400245293,1767215449803,-684.8,0.00027945,2]
[400245294,1767215449812,-642.07,0.00027945,2]
[400245295,1767215449822,-677.78,0.00027945,2]
[400245296,1767215449831,-152.36606131,0.00027945,5]
[400245297,1767215449840,-2000.0,0.00027946,7]
[400245298,1767215449861,-2000.0,0.00027955,7]
[400245299,1767215449870,-2000.0,0.00027964,7]
[400245300,1767215449879,-2000.0,0.00027973,7]
[400245301,1767215449889,-503.49957596,0.00027976,2]
[400245302,1767215449899,-2000.0,0.00027981,7]
[400245303,1767215449912,-2000.0,0.0002799,7]
[400245304,1767215449922,-160.0,0.00027991,3]
[400245305,1767215449931,-2000.0,0.00027999,7]
[400245306,1767215449941,-151.0,0.00028047,7]
[400245307,1767215449950,-152.548448,0.00028047,7]
[400245308,1767215449960,-152.548448,0.00028047,7]
[400245309,1767215449969,-152.548448,0.00028047,7]
[400245310,1767215449978,-152.548448,0.00028047,7]
[400245311,1767215449988,-151.0,0.000281,7]
[400245312,1767215449998,-151.0,0.000281,7]
[400245313,1767215450007,-151.0,0.000281,7]
[400245314,1767215450016,-169.466222,0.000281,7]
[400245315,1767215450025,-169.466222,0.000281,7]
[400245316,1767215450035,-169.466222,0.000281,7]
[400245317,1767215450044,-169.466222,0.000281,7]
[400245318,1767215450053,-151.0,0.000281,7]
[400245319,1767215450063,-1041.66666667,0.000282,7]
[400245320,1767215450072,-507.55014945,0.0002821,2]
[400245321,1767215450082,-822.94635778,0.00028219,2]
[400245322,1767215450092,-1077.58900291,0.00028219,2]
[400245323,1767215450101,-560.14,0.00028219,2]
[400245324,1767215450111,-1304.73978008,0.00028219,2]